fUSD/lending_fUSD_20240201
["ID","MTS","AMOUNT","RATE_DAILY","PERIOD"]
[313138493,1706796647800,-2559.02959446,0.00041642,4]
[313138494,1706796647811,-2687.9565213,0.00041642,4]
[313138495,1706796647823,-500.0,0.00041643,4]
[313138496,1706796647838,-624.28,0.00041643,4]
[313138497,1706796647851,-500.0,0.00041643,4]
[313138498,1706796647862,-500.0,0.00041643,4]
[313138499,1706796647872,-500.0,0.00041643,4]
[313138500,1706796647883,-179.29378731,0.00041643,4]
[313138501,1706796647893,-500.0,0.00041643,4]
[313138502,1706796647903,-500.0,0.00041643,4]
[313138503,1706796647915,-2257.30521239,0.00041847,5]
[313138504,1706796647926,-172.40484004,0.00041897,2]
[313138505,1706796647937,-1955.77705,0.000419,33]
[313138506,1706796647948,-353.31248,0.000419,49]
[313138507,1706796647958,-200.0,0.000419,2]
[313138508,1706796647968,-6713.9591,0.00041962,2]
[313138509,1706796647978,-100000.0,0.00041962,2]
[313138510,1706796647988,-360.2726,0.00041962,2]
[313138511,1706796647997,-1000.0,0.00041975,15]
[313138512,1706796648007,-546.36745095,0.00041975,30]
[313138513,1706796648017,-163.54821037,0.00041975,15]
[313138514,1706796648026,-271.46103382,0.00041975,15]
[313138515,1706796648037,-707.41172919,0.00041975,15]
[313138516,1706796648047,-1760.12521348,0.00041975,30]
[313138517,1706796648057,-593.36532834,0.00041975,15]
[313138518,1706796648066,-100000.0,0.00042,32]
[313138519,1706796648076,-159.8,0.00042,7]
[313138520,1706796648089,-521.84,0.000421,7]
[313138521,1706796648099,-150.0,0.00042177,2]
[313138522,1706796648109,-362.53551697,0.00042191,4]
[313138523,1706796648120,-624.28,0.00042191,4]
[313138524,1706796648130,-500.0,0.00042191,4]
[313138525,1706796648140,-500.0,0.00042191,4]
[313138526,1706796648150,-500.0,0.00042191,4]
[313138527,1706796648160,-486.26765603,0.00042191,4]
[313138528,1706796648169,-500.0,0.00042191,4]
[313138529,1706796648179,-802.38,0.00042205,2]
[313138530,1706796648188,-686.75958879,0.00042359,120]
[313138531,1706796648197,-929.20480191,0.00042359,120]
[313138532,1706796648207,-1684.314588,0.00042359,30]
[313138533,1706796648217,-3281.81248116,0.000426,120]
[313138534,1706796648226,-521.84,0.000427,7]
[313138535,1706796648237,-624.28,0.00042739,4]
[313138536,1706796648247,-500.0,0.00042739,4]
[313138537,1706796648256,-500.0,0.00042739,4]
[313138538,1706796648265,-500.0,0.00042739,4]
[313138539,1706796648275,-413.84215636,0.00042739,4]
[313138540,1706796648285,-666.0,0.00042762,4]
[313138541,1706796648294,-100000.0,0.00043,33]
[313138542,1706796648303,-1000.0,0.00043,2]
[313138543,1706796648312,-1000.0,0.00043132,2]
[313138544,1706796648321,-151.78573439,0.0004324,5]
[313138545,1706796648330,-150.0,0.00043259,2]
[313138546,1706796648341,-624.28,0.00043287,4]
[313138547,1706796648351,-500.0,0.00043287,4]
[313138548,1706796648360,-500.0,0.00043287,4]
[313138549,1706796648370,-500.0,0.00043287,4]
[313138550,1706796648379,-394.69875275,0.000433,30]
[313138551,1706796648388,-1110.17410498,0.00043318,30]
[313138552,1706796648397,-2257.30521239,0.00043426,5]
[313138553,1706796648407,-802.38,0.00043677,2]
[313138554,1706796648416,-167.0,0.0004369,2]
[313138555,1706796648426,-152.0,0.0004369,2]
[313138556,1706796648435,-250.0,0.000438,2]
[313138557,1706796648444,-8000.0,0.000438,2]
[313138558,1706796648454,-666.0,0.00043835,2]
[313138559,1706796648463,-600.0,0.00043835,4]
[313138560,1706796648473,-600.0,0.00043835,4]
[313138561,1706796648482,-600.0,0.00043835,4]
[313138562,1706796648491,-600.0,0.00043835,4]
[313138563,1706796648500,-600.0,0.00043835,4]
[313138564,1706796648510,-604.72740199,0.00043835,4]
[313138565,1706796648519,-624.28,0.00043835,4]
[313138566,1706796648528,-500.0,0.00043835,4]
[313138567,1706796648538,-500.0,0.00043835,4]
[313138568,1706796648547,-500.0,0.00043835,4]
[313138569,1706796648557,-1215.47,0.00043836,15]
[313138570,1706796648566,-100000.0,0.00044,34]
[313138571,1706796648575,-289.5366055,0.00044,30]
[313138572,1706796648586,-500.0,0.00044085,30]
[313138573,1706796648595,-662.78112152,0.00044085,20]
[313138574,1706796648604,-156.43179662,0.00044085,4]
[313138575,1706796648613,-2230.73208294,0.00044085,2]
[313138576,1706796648622,-5859.40530738,0.00044085,4]
[313138577,1706796648632,-200.0,0.00044085,2]
[313138578,1706796648641,-569.96688265,0.00044085,30]
[313138579,1706796648650,-1639.91302171,0.00044085,10]
[313138580,1706796648660,-256.747402,0.000443,16]
[313138581,1706796648670,-150.0,0.0004434,2]
[313138582,1706796648681,-624.28,0.00044383,4]
[313138583,1706796648692,-500.0,0.00044383,4]
[313138584,1706796648702,-500.0,0.00044383,4]
[313138585,1706796648713,-500.0,0.00044383,4]
[313138586,1706796648724,-157.76,0.00044666,2]
[313138587,1706796648734,-206.0,0.00044762,31]
[313138588,1706796648745,-3151.76506286,0.000449,30]
[313138589,1706796648754,-624.28,0.00044931,4]
[313138590,1706796648766,-500.0,0.00044931,4]
[313138591,1706796648775,-500.0,0.00044931,4]
[313138592,1706796648785,-500.0,0.00044931,4]
[313138593,1706796648795,-5000.0,0.00044986,4]
[313138594,1706796648805,-222.0,0.0004499,2]
[313138595,1706796648815,-100000.0,0.00045,35]
[313138596,1706796648826,-5042.78990262,0.00045,30]
[313138597,1706796648838,-949.07283148,0.00045,30]
[313138598,1706796648847,-1094.3536614,0.00045,30]
[313138599,1706796648856,-866.90308127,0.00045,20]
[313138600,1706796648867,-1745.335257,0.00045,17]
[313138601,1706796648876,-150.0,0.00045,20]
[313138602,1706796648885,-1422.0,0.00045,2]
[313138603,1706796648895,-10213.0,0.00045,2]
[313138604,1706796648906,-248.94,0.00045,7]
[313138605,1706796648915,-284.33582722,0.00045,30]
[313138606,1706796648925,-257.54731901,0.00045,30]
[313138607,1706796648934,-209.22947638,0.00045,30]
[313138608,1706796648944,-225.49920458,0.00045,30]
[313138609,1706796648954,-238.51162253,0.00045,30]
[313138610,1706796648963,-166.03842932,0.00045,30]
[313138611,1706796648973,-159.56625711,0.00045,30]
[313138612,1706796648982,-298.7370426,0.00045,30]
[313138613,1706796648993,-2257.30521239,0.00045005,5]
[313138614,1706796649003,-802.38,0.00045149,2]
[313138615,1706796649013,-6142.0,0.000452,2]
[313138616,1706796649022,-150.0,0.00045422,2]
[313138617,1706796649033,-624.28,0.00045479,4]
[313138618,1706796649042,-500.0,0.00045479,4]
[313138619,1706796649051,-500.0,0.00045479,4]
[313138620,1706796649061,-500.0,0.00045479,4]
[313138621,1706796649071,-278.45489081,0.000455,2]
[313138622,1706796649081,-1000.0,0.000458,2]
[313138623,1706796649090,-500.0,0.000458,2]
[313138624,1706796649099,-666.0,0.0004589,2]
[313138625,1706796649108,-100000.0,0.00046,36]
[313138626,1706796649119,-521.84,0.00046,7]
[313138627,1706796649130,-500.0,0.00046,2]
[313138628,1706796649140,-624.28,0.00046027,4]
[313138629,1706796649150,-500.0,0.00046027,4]
[313138630,1706796649160,-500.0,0.00046027,4]
[313138631,1706796649171,-500.0,0.00046027,4]
[313138632,1706796649181,-200.0,0.000462,2]
[313138633,1706796649192,-410.14,0.00046301,2]
[313138634,1706796649201,-1822.56,0.000464,5]
[313138635,1706796649212,-159.8,0.000464,7]
[313138636,1706796649221,-153.92899581,0.00046464,31]
[313138637,1706796649231,-150.0,0.00046503,2]
[313138638,1706796649241,-624.28,0.00046575,4]
[313138639,1706796649250,-500.0,0.00046575,4]
[313138640,1706796649259,-500.0,0.00046575,4]
[313138641,1706796649270,-500.0,0.00046575,4]
[313138642,1706796649280,-2257.30521239,0.00046584,5]
[313138643,1706796649291,-6142.1891384,0.000466,2]
[313138644,1706796649301,-59270.0,0.00046657,30]
[313138645,1706796649312,-2557.0,0.00046657,30]
[313138646,1706796649323,-476.0,0.00046657,30]
[313138647,1706796649332,-475.73398796,0.000468,2]
[313138648,1706796649343,-1003.36,0.00046849,120]
[313138649,1706796649353,-718.0,0.0004689,2]
[313138650,1706796649363,-653.0,0.0004689,2]
[313138651,1706796649372,-217.2464534,0.00046968,2]
[313138652,1706796649381,-953.1768997,0.00046968,2]
[313138653,1706796649391,-22686.9041237,0.00046968,2]
[313138654,1706796649400,-10902.5947155,0.00046968,2]
[313138655,1706796649410,-185.4628944,0.00046968,2]
[313138656,1706796649419,-491.1266662,0.00046968,2]
[313138657,1706796649429,-100000.0,0.00047,37]
[313138658,1706796649440,-624.28,0.00047123,4]
[313138659,1706796649450,-500.0,0.00047123,4]
[313138660,1706796649460,-500.0,0.00047123,4]
[313138661,1706796649471,-500.0,0.00047123,4]
[313138662,1706796649480,-59270.0,0.00047138,30]
[313138663,1706796649490,-2557.0,0.00047138,30]
[313138664,1706796649500,-476.0,0.00047138,30]
[313138665,1706796649511,-1000.0,0.00047445,2]
[313138666,1706796649521,-1215.47,0.00047572,15]
[313138667,1706796649531,-150.0,0.00047585,2]
[313138668,1706796649541,-59270.0,0.00047619,30]
[313138669,1706796649550,-2557.0,0.00047619,30]
[313138670,1706796649560,-476.0,0.00047619,30]
[313138671,1706796649569,-624.28,0.00047671,4]
[313138672,1706796649579,-500.0,0.00047671,4]
[313138673,1706796649591,-500.0,0.00047671,4]
[313138674,1706796649600,-386.21183516,0.00047671,4]
[313138675,1706796649610,-666.0,0.00047945,2]
[313138676,1706796649619,-500.0,0.00047945,30]
[313138677,1706796649630,-157.76,0.00047975,2]
[313138678,1706796649639,-155.66144457,0.00047996,30]
[313138679,1706796649648,-100000.0,0.00048,38]
[313138680,1706796649657,-6850.2749159,0.00048,14]
[313138681,1706796649666,-800.0,0.00048,4]
[313138682,1706796649675,-86551.64842017,0.00048,30]
[313138683,1706796649685,-15115.29828629,0.00048,14]
[313138684,1706796649694,-186945.64382045,0.00048,30]
[313138685,1706796649704,-194.101502,0.00048,14]
[313138686,1706796649713,-154.08981613,0.00048,30]
[313138687,1706796649722,-150.88124633,0.00048002,30]
[313138688,1706796649732,-155.66144457,0.00048058,30]
[313138689,1706796649742,-276.34458794,0.00048062,30]
[313138690,1706796649751,-276.34458794,0.00048064,30]
[313138691,1706796649760,-276.34458794,0.00048094,30]
[313138692,1706796649769,-59270.0,0.000481,30]
[313138693,1706796649778,-195.03518127,0.000481,30]
[313138694,1706796649788,-2557.0,0.000481,30]
[313138695,1706796649797,-476.0,0.000481,30]
[313138696,1706796649807,-1375.87877982,0.000481,30]
[313138697,1706796649819,-178.38676314,0.00048101,30]
[313138698,1706796649829,-276.34458794,0.00048101,30]
[313138699,1706796649841,-151.51747848,0.00048107,30]
[313138700,1706796649851,-276.34458794,0.0004811,30]
[313138701,1706796649861,-178.38676314,0.00048134,30]
[313138702,1706796649871,-2257.30521239,0.00048163,5]
[313138703,1706796649880,-154.08981613,0.00048166,30]
[313138704,1706796649892,-153.25746254,0.00048209,30]
[313138705,1706796649902,-178.38676314,0.00048213,30]
[313138706,1706796649912,-178.38676314,0.00048219,30]
[313138707,1706796650031,-624.28,0.00048219,4]
[313138708,1706796650066,-500.0,0.00048219,4]
[313138709,1706796650076,-500.0,0.00048219,4]
[313138710,1706796650087,-154.08981613,0.00048273,30]
[313138711,1706796650096,-152.96362477,0.00048278,30]
[313138712,1706796650106,-151.0,0.00048279,2]
[313138713,1706796650115,-250.49088,0.00048279,2]
[313138714,1706796650125,-178.38676314,0.00048304,30]
[313138715,1706796650134,-276.34458794,0.00048329,30]
[313138716,1706796650144,-171.89380636,0.0004835,30]
[313138717,1706796650154,-178.38676314,0.00048362,30]
[313138718,1706796650163,-165.03246501,0.00048393,5]
[313138719,1706796650173,-154.08981613,0.00048463,30]
[313138720,1706796650182,-1000.0,0.000485,2]
[313138721,1706796650192,-154.08981613,0.00048505,30]
[313138722,1706796650201,-276.34458794,0.00048527,30]
[313138723,1706796650210,-276.34458794,0.0004857,30]
[313138724,1706796650220,-206.0,0.00048571,38]
[313138725,1706796650229,-59270.0,0.00048581,30]
[313138726,1706796650238,-2557.0,0.00048581,30]
[313138727,1706796650248,-476.0,0.00048581,30]
[313138728,1706796650258,-150.0,0.00048666,2]
[313138729,1706796650268,-155.66144457,0.00048671,30]
[313138730,1706796650277,-159.13632681,0.00048676,30]
[313138731,1706796650287,-156.80178581,0.00048678,30]
[313138732,1706796650296,-276.34458794,0.00048679,30]
[313138733,1706796650306,-150.88124633,0.00048693,30]
[313138734,1706796650316,-1719.0,0.000487,117]
[313138735,1706796650325,-171.77346967,0.00048703,30]
[313138736,1706796650335,-171.77346967,0.00048713,30]
[313138737,1706796650344,-171.77346967,0.00048724,30]
[313138738,1706796650353,-156.80178581,0.0004874,30]
[313138739,1706796650363,-276.34458794,0.00048743,30]
[313138740,1706796650372,-178.38676314,0.00048748,30]
[313138741,1706796650381,-153.25746254,0.00048759,30]
[313138742,1706796650391,-153.25746254,0.00048764,30]
[313138743,1706796650401,-624.28,0.00048767,4]
[313138744,1706796650410,-574.17643964,0.00048767,4]
[313138745,1706796650420,-246.32933225,0.00048767,4]
[313138746,1706796650429,-155.66144457,0.00048782,30]
[313138747,1706796650439,-9356.44732246,0.000488,10]
[313138748,1706796650448,-2000.0,0.000488,2]
[313138749,1706796650458,-151.51747848,0.00048862,30]
[313138750,1706796650467,-154.08981613,0.00048872,30]
[313138751,1706796650477,-910.0,0.0004889,2]
[313138752,1706796650487,-828.0,0.0004889,2]
[313138753,1706796650496,-162.48867809,0.00048891,30]
[313138754,1706796650505,-155.66144457,0.00048894,30]
[313138755,1706796650515,-500.0,0.000489,2]
[313138756,1706796650523,-276.34458794,0.00048905,30]
[313138757,1706796650533,-178.38676314,0.00048913,30]
[313138758,1706796650542,-178.38676314,0.00048954,30]
[313138759,1706796650552,-217.2464534,0.00048966,2]
[313138760,1706796650561,-953.1768997,0.00048966,2]
[313138761,1706796650570,-29648.6976684,0.00048966,2]
[313138762,1706796650579,-12730.1487972,0.00048966,2]
[313138763,1706796650589,-185.4628944,0.00048966,2]
[313138764,1706796650598,-574.1441224,0.00048966,2]
[313138765,1706796650608,-276.34458794,0.0004897,30]
[313138766,1706796650617,-172.40484004,0.00048997,2]
[313138767,1706796650627,-100000.0,0.00049,39]
[313138768,1706796650636,-100264.13780447,0.00049,10]
[313138769,1706796650645,-276.34458794,0.00049017,30]
[313138770,1706796650655,-150.88124633,0.00049043,30]
[313138771,1706796650665,-151.51747848,0.00049044,30]
[313138772,1706796650674,-153.25746254,0.00049046,30]
[313138773,1706796650683,-151.51747848,0.00049048,30]
[313138774,1706796650693,-59270.0,0.00049062,30]
[313138775,1706796650702,-2557.0,0.00049062,30]
[313138776,1706796650711,-476.0,0.00049062,30]
[313138777,1706796650721,-276.34458794,0.00049076,30]
[313138778,1706796650730,-302.0,0.00049091,4]
[313138779,1706796650740,-276.34458794,0.00049094,30]
[313138780,1706796650749,-276.34458794,0.00049107,30]
[313138781,1706796650759,-150.88124633,0.00049115,30]
[313138782,1706796650768,-150.0,0.00049132,7]
[313138783,1706796650778,-150.0,0.00049139,7]
[313138784,1706796650787,-156.80178581,0.00049163,30]
[313138785,1706796650797,-151.51747848,0.00049164,30]
[313138786,1706796650806,-150.0,0.00049167,7]
[313138787,1706796650817,-150.0,0.00049187,7]
[313138788,1706796650829,-155.66144457,0.00049193,30]
[313138789,1706796650839,-150.0,0.00049222,7]
[313138790,1706796650848,-150.0,0.00049224,7]
[313138791,1706796650859,-150.88124633,0.00049224,30]
[313138792,1706796650869,-154.08981613,0.00049227,30]
[313138793,1706796650879,-155.66144457,0.00049237,30]
[313138794,1706796650889,-155.66144457,0.0004927,30]
[313138795,1706796650899,-150.0,0.00049282,7]
[313138796,1706796650912,-155.66144457,0.00049286,30]
[313138797,1706796650922,-150.0,0.00049288,7]
[313138798,1706796650932,-250.0,0.000493,2]
[313138799,1706796650942,-150.0,0.00049313,7]
[313138800,1706796650952,-2000.0,0.00049315,120]
[313138801,1706796650963,-624.28,0.00049315,30]
[313138802,1706796650973,-200.0,0.00049315,60]
[313138803,1706796650983,-150.0,0.00049326,7]
[313138804,1706796650993,-150.0,0.00049328,7]
[313138805,1706796651003,-178.38676314,0.00049333,30]
[313138806,1706796651013,-218.93455327,0.00049336,7]
[313138807,1706796651022,-150.0,0.0004934,7]
[313138808,1706796651032,-150.0,0.00049347,7]
[313138809,1706796651042,-150.0,0.00049348,7]
[313138810,1706796651051,-150.0,0.0004935,7]
[313138811,1706796651061,-22454.42901305,0.00049364,5]
[313138812,1706796651071,-276.34458794,0.00049372,30]
[313138813,1706796651080,-150.0,0.00049375,7]
[313138814,1706796651091,-150.0,0.00049378,7]
[313138815,1706796651100,-150.0,0.00049384,7]
[313138816,1706796651110,-446.0,0.0004939,2]
[313138817,1706796651120,-406.0,0.0004939,2]
[313138818,1706796651129,-150.0,0.00049392,7]
[313138819,1706796651139,-150.0,0.00049401,7]
[313138820,1706796651149,-22078.96451363,0.0004941,2]
[313138821,1706796651158,-151.51747848,0.00049413,30]
[313138822,1706796651168,-276.34458794,0.00049422,30]
[313138823,1706796651178,-151.51747848,0.00049437,30]
[313138824,1706796651188,-155.66144457,0.00049441,30]
[313138825,1706796651197,-150.0,0.00049448,7]
[313138826,1706796651207,-150.0,0.00049457,7]
[313138827,1706796651217,-5000.0,0.000495,120]
[313138828,1706796651226,-5000.0,0.000495,120]
[313138829,1706796651235,-1998.13,0.000495,120]
[313138830,1706796651245,-424244.54885386,0.000495,5]
[313138831,1706796651255,-3886.23,0.000495,120]
[313138832,1706796651264,-151.51747848,0.00049503,30]
[313138833,1706796651274,-178.38676314,0.00049516,30]
[313138834,1706796651284,-59270.0,0.00049543,30]
[313138835,1706796651294,-2557.0,0.00049543,30]
[313138836,1706796651303,-476.0,0.00049543,30]
[313138837,1706796651312,-150.0,0.00049546,7]
[313138838,1706796651322,-276.34458794,0.00049547,30]
[313138839,1706796651331,-178.38676314,0.00049566,30]
[313138840,1706796651342,-276.34458794,0.0004957,30]
[313138841,1706796651354,-178.38676314,0.00049572,30]
[313138842,1706796651364,-300.0,0.00049581,7]
[313138843,1706796651374,-150.0,0.00049587,7]
[313138844,1706796651383,-150.0,0.0004959,7]
[313138845,1706796651393,-165.0,0.0004959,2]
[313138846,1706796651403,-156.80178581,0.00049595,30]
[313138847,1706796651413,-154.08981613,0.0004962,30]
[313138848,1706796651422,-150.0,0.00049631,7]
[313138849,1706796651431,-150.0,0.00049636,7]
[313138850,1706796651441,-150.0,0.00049641,7]
[313138851,1706796651451,-1000.0,0.00049641,2]
[313138852,1706796651460,-1000.0,0.00049641,2]
[313138853,1706796651470,-1000.0,0.00049641,2]
[313138854,1706796651480,-1000.0,0.00049641,2]
[313138855,1706796651489,-1000.0,0.00049641,2]
[313138856,1706796651499,-1000.0,0.00049641,2]
[313138857,1706796651508,-1000.0,0.00049641,2]
[313138858,1706796651517,-1000.0,0.00049641,2]
[313138859,1706796651526,-180.3842,0.00049641,2]
[313138860,1706796651535,-150.0,0.0004965,7]
[313138861,1706796651545,-2000.0,0.00049651,5]
[313138862,1706796651554,-178.38676314,0.00049652,30]
[313138863,1706796651564,-150.0,0.00049678,7]
[313138864,1706796651573,-178.38676314,0.00049679,30]
[313138865,1706796651582,-156.80178581,0.00049686,30]
[313138866,1706796651593,-164.04,0.000497,6]
[313138867,1706796651603,-2257.30521239,0.00049742,5]
[313138868,1706796651613,-150.0,0.00049748,2]
[313138869,1706796651623,-276.34458794,0.00049753,30]
[313138870,1706796651633,-150.0,0.00049755,7]
[313138871,1706796651642,-150.0,0.00049761,7]
[313138872,1706796651652,-150.0,0.00049769,7]
[313138873,1706796651661,-276.34458794,0.00049782,30]
[313138874,1706796651671,-155.66144457,0.00049784,30]
[313138875,1706796651681,-150.0,0.00049784,7]
[313138876,1706796651690,-150.0,0.00049794,7]
[313138877,1706796651700,-16132.22741187,0.000498,7]
[313138878,1706796651710,-1173.719034,0.00049806,30]
[313138879,1706796651719,-150.0,0.00049807,7]
[313138880,1706796651728,-150.0,0.00049823,7]
[313138881,1706796651738,-150.0,0.00049825,7]
[313138882,1706796651747,-150.0,0.00049835,7]
[313138883,1706796651756,-150.88124633,0.00049854,30]
[313138884,1706796651766,-300.0,0.00049855,7]
[313138885,1706796651776,-624.28,0.00049863,30]
[313138886,1706796651785,-153.25746254,0.00049879,30]
[313138887,1706796651795,-150.0,0.0004988,7]
[313138888,1706796651804,-150.01,0.00049889,2]
[313138889,1706796651817,-3306.75797983,0.00049889,2]
[313138890,1706796651827,-1089.0,0.0004989,2]
[313138891,1706796651837,-1041.0,0.0004989,2]
[313138892,1706796651846,-150.0,0.00049897,7]
[313138893,1706796651857,-5956.80653602,0.00049898,31]
[313138894,1706796651867,-2747.37846706,0.000499,7]
[313138895,1706796651877,-170.01533238,0.000499,26]
[313138896,1706796651886,-50000.0,0.000499,60]
[313138897,1706796651899,-1999.9999999,0.000499,7]
[313138898,1706796651910,-200.0,0.000499,7]
[313138899,1706796651920,-500.0,0.000499,2]
[313138900,1706796651929,-660.960534,0.000499,16]
[313138901,1706796651939,-150.0,0.000499,27]
[313138902,1706796651949,-151.189536,0.000499,99]
[313138903,1706796651959,-5764.041615,0.000499,58]
[313138904,1706796651969,-501.00444,0.000499,23]
[313138905,1706796651978,-1979.499118,0.000499,31]
[313138906,1706796651989,-1979.499117,0.000499,31]
[313138907,1706796651998,-217.2464534,0.00049906,2]
[313138908,1706796652007,-953.1768997,0.00049906,2]
[313138909,1706796652016,-36610.4912132,0.00049906,2]
[313138910,1706796652026,-14557.702879,0.00049906,2]
[313138911,1706796652035,-185.4628944,0.00049906,2]
[313138912,1706796652044,-657.1615785,0.00049906,2]
[313138913,1706796652054,-604.0,0.00049916,7]
[313138914,1706796652063,-500.0,0.0004992,23]
[313138915,1706796652072,-500.0,0.0004994,23]
[313138916,1706796652082,-171.77346967,0.00049949,30]
[313138917,1706796652092,-180.0,0.00049951,2]
[313138918,1706796652103,-171.77346967,0.00049952,30]
[313138919,1706796652113,-171.77346972,0.00049957,30]
[313138920,1706796652122,-500.0,0.0004996,23]
[313138921,1706796652131,-151.51747848,0.00049974,30]
[313138922,1706796652141,-3130.0,0.00049975,120]
[313138923,1706796652154,-155.66144457,0.00049975,30]
[313138924,1706796652163,-2730.0,0.00049979,49]
[313138925,1706796652173,-491.54235441,0.0004998,30]
[313138926,1706796652183,-500.0,0.0004998,23]
[313138927,1706796652193,-200.0,0.00049987,38]
[313138928,1706796652202,-200.0,0.00049987,39]
[313138929,1706796652211,-178.38676314,0.00049988,30]
[313138930,1706796652221,-2710.0,0.0004999,2]
[313138931,1706796652231,-226.0,0.0004999,3]
[313138932,1706796652242,-2467.0,0.0004999,2]
[313138933,1706796652251,-206.0,0.0004999,3]
[313138934,1706796652260,-154.08981613,0.00049992,30]
[313138935,1706796652270,-269.11063584,0.00049995,30]
[313138936,1706796652281,-344.80968008,0.00049997,2]
[313138937,1706796652290,-5583.57110811,0.00049998,120]
[313138938,1706796652299,-105370.75204285,0.00049999,5]
[313138939,1706796652308,-1000.0,0.00049999,120]
[313138940,1706796652317,-100000.0,0.0005,40]
[313138941,1706796652326,-331058.0083385,0.0005,30]
[313138942,1706796652336,-57413.90613993,0.0005,120]
[313138943,1706796652345,-50266.92733966,0.0005,2]
[313138944,1706796652354,-848.22541924,0.0005,120]
[313138945,1706796652363,-2000.0,0.0005,120]
[313138946,1706796652372,-1508.97258219,0.0005,2]
[313138947,1706796652381,-5000.0,0.0005,30]
[313138948,1706796652390,-5000.0,0.0005,30]
[313138949,1706796652400,-19060.05365396,0.0005,60]
[313138950,1706796652409,-16483.31261173,0.0005,3]
[313138951,1706796652418,-275.79807587,0.0005,4]
[313138952,1706796652427,-12489.29,0.0005,30]
[313138953,1706796652469,-518.13,0.0005,7]
[313138954,1706796652478,-500.0,0.0005,7]
[313138955,1706796652488,-902.92033302,0.0005,120]
[313138956,1706796652498,-8888.48646725,0.0005,2]
[313138957,1706796652508,-3909.64540168,0.0005,2]
[313138958,1706796652518,-1110.96153432,0.0005,2]
[313138959,1706796652528,-809.63123466,0.0005,2]
[313138960,1706796652537,-216.22066645,0.0005,2]
[313138961,1706796652546,-200.0,0.0005,2]
[313138962,1706796652556,-19198.96183121,0.0005,2]
[313138963,1706796652564,-10093.77689462,0.0005,120]
[313138964,1706796652574,-17859.48551811,0.0005,30]
[313138965,1706796652583,-2805.30693806,0.0005,10]
[313138966,1706796652594,-240.05592642,0.0005,6]
[313138967,1706796652603,-269.80620878,0.0005,4]
[313138968,1706796652612,-155.0,0.0005,4]
[313138969,1706796652622,-2961.82045315,0.0005,4]
[313138970,1706796652631,-3772.5467682,0.0005,60]
[313138971,1706796652641,-173.25358565,0.0005,90]
[313138972,1706796652650,-4111.49427397,0.0005,4]
[313138973,1706796652659,-155.0,0.0005,2]
[313138974,1706796652669,-7869.82042136,0.0005,4]
[313138975,1706796652678,-500.0,0.0005,6]
[313138976,1706796652688,-2500.0,0.0005,120]
[313138977,1706796652697,-183.42037319,0.0005,4]
[313138978,1706796652706,-188.42609604,0.0005,30]
[313138979,1706796652715,-215.434384,0.0005,4]
[313138980,1706796652725,-560.0,0.0005,4]
[313138981,1706796652735,-116224.8149095,0.0005,30]
[313138982,1706796652744,-4392.73226119,0.0005,120]
[313138983,1706796652754,-2110.0,0.0005,30]
[313138984,1706796652763,-1000.0,0.0005,7]
[313138985,1706796652773,-315.0,0.0005,2]
[313138986,1706796652782,-2526.86093132,0.0005,60]
[313138987,1706796652791,-4500.0,0.0005,3]
[313138988,1706796652800,-1043.0,0.0005,7]
[313138989,1706796652809,-2242.7225963,0.0005,5]
[313138990,1706796652819,-5000.0,0.0005,2]
[313138991,1706796652830,-300.0,0.0005,60]
[313138992,1706796652841,-301.58347822,0.0005,30]